Cogmind - Beta 11 X8 @@@ ROGUE MODE // 2021.10.24 @ 17:53:47 Player: thomas Result: Destroyed by G-67 Veteran with Electrolaser Performance ------------- Evolutions (7) 3500 Regions Visited (15) 3000 Robots Destroyed (46) 230 Value Destroyed (1196) 1196 Prototype IDs (31) 620 Alien Tech Used (2) 400 Bonus (1300) 1300 TOTAL SCORE: 10246 Bonus ------- Triggered Max Security 1000 Aligned with FarCom 300 Cogmind --------- Core Integrity 0/1300 Matter 272/300 Energy 99/100 System Corruption 17% Temperature Cool (0) Movement Core (50) Location -3/Quarantine Parts ------- > --- POWER (2) -------- (None) > --- PROPULSION (6) --- (None) > --- UTILITY (11) ----- (None) > --- WEAPON (2) ------- (None) > --- INVENTORY (5) ---- Improved Antigrav System Improved Arc Projector Core Cannon Advanced Datajack Peak State ------------ > --- POWER ------------ Light Fission Core Micro Fission Core > --- PROPULSION ------- Cooled VTOL Module Flying Fortress v7 Cooled Impulse Thruster > --- UTILITY ---------- Large Storage Unit Advanced Energy Well Enhanced Optical Array Advanced Terrain Scan Processor Improved Core Analyzer Microactuators Improved Transmission Jammer Improved Phase Shifter Makeshift Armor Plating Advanced Hacking Suite Experimental Reclamation Unit > --- WEAPON ----------- Katana Katana > --- INVENTORY -------- Antimatter Reactor Light Particle Reactor Gravmag Array Gravmag Array Gravmag Array Antigrav System Improved Linear Gravjet Compact Battery Matter Compressor Advanced ECM Suite Improved Arc Projector Plasma Sword [Rating: 129] Favorites ----------- Power Improved Ion Engine Engine Improved Ion Engine Power Core Micro Fission Core Reactor Antimatter Reactor Propulsion Aluminum Leg Leg Aluminum Leg Hover Unit Gravmag Array Flight Unit Flying Fortress v7 Utility Large Storage Unit Device ECM Suite Storage Large Storage Unit Processor Advanced Terrain Scan Processor Hackware Advanced Hacking Suite Protection Hardened Light Armor Plating Weapon Axe Energy Gun Small Laser Energy Cannon Core Cannon Ballistic Gun Light Assault Rifle Launcher Grenade Launcher Special Weapon Mining Laser Impact Weapon Thunder Hammer Slashing Weapon Axe Special Melee Weapon Advanced Datajack Build | -11 -10 -10 -10 -9 -8 -7 -6 -6 -6 -5 -5 -5 -4 -3 -3 ------- Run | Scr Mat Min Exi Min Mat Fac Fac Ext Cet Fac Upp Upp Fac Res Qua Slots Evolved 14 | . . . . . 4 2 2 . . 2 . . 2 2 . Power 1 | . . . . . 1 . . . . . . . . . . Propulsion 4 | . . . . . 2 . . . . . . . 2 . . Utility 9 | . . . . . 1 2 2 . . 2 . . . 2 . Weapon . | . . . . . . . . . . . . . . . . Parts Attached 98 | 6 9 5 . 2 10 7 3 4 . 14 1 1 4 27 5 Power 15 | 1 2 . . . 1 2 . 2 . 4 . 1 1 1 . Engine 9 | 1 2 . . . 1 2 . 2 . 1 . . . . . Core 5 | . . . . . . . . . . 3 . 1 1 . . Reactor 1 | . . . . . . . . . . . . . . 1 . Propulsion 18 | 2 4 1 . . 1 . . . . . . . 1 8 1 Treads . | . . . . . . . . . . . . . . . . Leg 7 | 2 4 1 . . . . . . . . . . . . . Wheel . | . . . . . . . . . . . . . . . . Hover 7 | . . . . . . . . . . . . . . 7 . Flight 4 | . . . . . 1 . . . . . . . 1 1 1 Utility 39 | 1 2 . . . 4 4 3 2 . 8 1 . 2 10 2 Device 18 | . . . . . 1 1 1 1 . 4 . . . 9 1 Storage 6 | 1 1 . . . 1 . . . . 1 . . . 1 1 Processor 5 | . . . . . 1 1 2 . . 1 . . . . . Hackware 2 | . . . . . . . . . . . . . 2 . . Protection 8 | . 1 . . . 1 2 . 1 . 2 1 . . . . Artifact . | . . . . . . . . . . . . . . . . Weapon 26 | 2 1 4 . 2 4 1 . . . 2 . . . 8 2 Energy Gun 2 | . . 1 . 1 . . . . . . . . . . . Energy Cannon 1 | . . . . . . . . . . . . . . . 1 Ballistic Gun 5 | 2 1 1 . . 1 . . . . . . . . . . Ballistic Cannon . | . . . . . . . . . . . . . . . . Launcher 2 | . . 1 . 1 . . . . . . . . . . . Special Weapon 2 | . . 1 . . . . . . . . . . . 1 . Impact Weapon 2 | . . . . . . . . . . . . . . 2 . Slashing Weapon 10 | . . . . . 3 1 . . . 2 . . . 4 . Piercing Weapon . | . . . . . . . . . . . . . . . . Special Melee Weapon 2 | . . . . . . . . . . . . . . 1 1 Unidentified Prototypes 8 | . . . . . . . . . . . . . . 6 2 Parts Lost 36 | . . . . . . . . 4 . 2 . 1 1 22 6 Power 8 | . . . . . . . . 2 . 2 . 1 . 3 . Propulsion 8 | . . . . . . . . . . . . . . 7 1 Utility 18 | . . . . . . . . 2 . . . . 1 11 4 Weapon 2 | . . . . . . . . . . . . . . 1 1 Highest Loss Streak 12 | . . . . . . . . 4 . 2 . 1 1 12 6 Average Slot Usage (%) 82 | . 98 93 85 100 71 75 80 78 80 78 71 70 71 77 25 Engine 10 | . 13 14 14 14 18 15 13 12 13 8 5 3 . . . Core 1 | . . . . . . . . . . . . 1 8 6 . Leg 10 | . 28 28 28 28 . . . . . . . . . . . Hover 1 | . . . . . . . . . . . . . . 11 . Flight 3 | . . . . . 9 7 6 6 6 5 5 5 6 3 3 Device 9 | . . . . . 8 9 20 19 20 22 18 17 10 18 5 Storage 9 | . 14 14 14 14 9 7 6 6 6 5 5 5 5 8 3 Processor 8 | . . . . . 7 15 20 18 13 15 17 17 15 8 . Protection 7 | . 13 14 14 14 1 4 . . 6 5 5 5 5 3 . Energy Gun 3 | . . 6 14 14 1 . . . . . . . . . . Ballistic Gun 3 | . 28 7 . . . . . . . . . . . . . Launcher 2 | . . 6 . 14 . . . . . . . . . . . Slashing Weapon 7 | . . . . . 15 14 13 13 13 11 11 11 10 4 2 Naked Turns 1 | . . . . . . . . . . . . . . . 1 Heaviest Build 68 | 11 35 36 33 38 48 50 49 49 48 57 43 42 42 68 6 Greatest Support 63 | 20 20 20 20 20 50 50 50 50 50 50 50 50 55 63 15 Greatest Overweight (x) 10 | . 1 1 1 1 . . . . . 1 . . . 10 . Average Overweight (x) . | . . 1 1 1 . . . . . . . . . . . Largest Inventory Capacity 15 | 8 15 15 15 15 15 15 15 15 15 15 15 15 15 15 5 Average Capacity 14 | 6 10 15 15 15 15 15 15 15 15 15 15 15 15 14 5 Most Carried 15 | 4 9 14 15 15 15 15 15 14 13 15 15 15 15 15 5 Average Carried 13 | 1 8 12 14 14 11 14 14 13 13 14 15 14 14 13 3 Final Capacity 15 | 8 15 15 15 15 15 15 15 15 15 15 15 15 15 5 5 Final Carried 15 | 4 9 14 15 15 14 15 14 13 13 15 15 14 15 5 5 Class Distribution -------------------- 64% | Mutant 15% | Infiltrator-Ninja 14% | Ninja 4% | Hacker-Ninja Dominant Class ---------------- Mutant | -10/Materials Mutant | -10/Mines Mutant | -10/Exiles Mutant | -9/Mines Mutant | -8/Materials Mutant | -7/Factory Ninja | -6/Factory Ninja | -6/Extension Ninja | -6/Cetus Infiltrator-Ninja | -5/Factory Infiltrator-Ninja | -5/Upper Caves Infiltrator-Ninja | -5/Upper Caves Hacker-Ninja | -4/Factory Mutant | -3/Research Mutant | -3/Quarantine Resources | -11 -10 -10 -10 -9 -8 -7 -6 -6 -6 -5 -5 -5 -4 -3 -3 ----------- Run | Scr Mat Min Exi Min Mat Fac Fac Ext Cet Fac Upp Upp Fac Res Qua Matter Collected 1535 | 260 178 112 . 54 111 117 71 162 . 237 37 . . 196 . Remotely . | . . . . . . . . . . . . . . . . Salvage Created 1425 | . 414 86 . 65 111 117 71 100 . 225 88 . . 148 . Parts 93 | . 20 9 . 16 7 4 3 4 . 14 5 . . 11 . Haulers Intercepted 2 | . 1 . . . . 1 . . . . . . . . . Recyclers Shooed . | . . . . . . . . . . . . . . . . Parts Field Recycled . | . . . . . . . . . . . . . . . . Retrieved Matter . | . . . . . . . . . . . . . . . . Parts Self-Destructed . | . . . . . . . . . . . . . . . . Prevented . | . . . . . . . . . . . . . . . . Kills | -11 -10 -10 -10 -9 -8 -7 -6 -6 -6 -5 -5 -5 -4 -3 -3 ------- Run | Scr Mat Min Exi Min Mat Fac Fac Ext Cet Fac Upp Upp Fac Res Qua Combat Hostiles Destroyed 33 | . 6 5 . 11 1 1 1 2 . 3 1 . . 2 . Melee 11 | . . . . . 1 1 1 2 . 3 1 . . 2 . Guns 9 | . 6 1 . 2 . . . . . . . . . . . AOE 13 | . . 4 . 9 . . . . . . . . . . . Classes Destroyed 12 | . 6 . . . 2 . 1 1 . . 1 . . 1 . Worker 5 | . 1 1 . . . 1 . . . 2 . . . . . Builder 1 | . . . . . 1 . . . . . . . . . . Tunneler 1 | . . . . . . . . . . . . . . 1 . Hauler 2 | . 1 . . . . 1 . . . . . . . . . Recycler 1 | . 1 . . . . . . . . . . . . . . Operator 1 | . . . . . 1 . . . . . . . . . . Watcher 2 | . 1 . . . 1 . . . . . . . . . . Swarmer 16 | . 2 3 . 11 . . . . . . . . . . . Grunt 9 | . 4 2 . . 1 1 . 1 . . . . . . . Sentry 2 | . . . . . . . 1 . . 1 . . . . . Programmer 5 | . . . . . . . . 1 . 2 . . . 2 . Mutant 1 | . . . . . . . . . . . 1 . . . . Best Kill Streak 5 | . 5 3 . 4 1 1 1 1 . 2 1 . . 2 . Combat Bots Only 4 | . 2 3 . 4 1 1 1 1 . 2 1 . . 2 . Max Kills in Single Turn 4 | . 1 3 . 4 1 1 1 1 . 1 1 . . 1 . Gunslinging . | . . . . . . . . . . . . . . . . Exploded 4 | . . 3 . 4 . . . . . . . . . . . Melee 1 | . . . . . 1 1 1 1 . 1 1 . . 1 . Uniques/NPCs Destroyed . | . . . . . . . . . . . . . . . . Combat | -11 -10 -10 -10 -9 -8 -7 -6 -6 -6 -5 -5 -5 -4 -3 -3 -------- Run | Scr Mat Min Exi Min Mat Fac Fac Ext Cet Fac Upp Upp Fac Res Qua Damage Taken 6497 | . 388 163 . 152 60 18 24 824 64 337 207 55 111 3423 671 Core 1749 | . 29 10 . 20 12 . 12 281 . 84 48 22 . 756 475 Absorbed by Shields 198 | . . . . . . . . . . . . . . 198 . Core Remaining (%) 88 | 100 . . . 76 97 100 . . 65 . . 84 100 . . Volleys Fired 47 | . 27 11 . 8 . . . . . . . . . 1 . Largest 2 | . 2 2 . 2 . . . . . . . . . 1 . Hottest 100 | . 40 100 . 86 . . . . . . . . . 20 . Shots Fired 88 | . 54 17 . 16 . . . . . . . . . 1 . Gun 73 | . 54 11 . 8 . . . . . . . . . . . Cannon . | . . . . . . . . . . . . . . . . Launcher 12 | . . 4 . 8 . . . . . . . . . . . Special 3 | . . 2 . . . . . . . . . . . 1 . Kinetic 60 | . 54 6 . . . . . . . . . . . . . Thermal 16 | . . 7 . 8 . . . . . . . . . 1 . Explosive 12 | . . 4 . 8 . . . . . . . . . . . Electromagnetic . | . . . . . . . . . . . . . . . . Robot Hit Streak 8 | . 8 7 . 2 . . . . . . . . . . . Robot Miss Streak 3 | . 3 1 . 1 . . . . . . . . . . . Penetration Max . | . . . . . . . . . . . . . . . . Secondary Targets . | . . . . . . . . . . . . . . . . Shots Hit Robots 129 | . 34 9 . 3 6 7 1 14 . 19 7 . 5 24 . Core Hits 72 | . 19 10 . 12 3 3 1 3 . 8 4 . 1 6 2 Critical Kills . | . . . . . . . . . . . . . . . . Critical Parts Destroyed 1 | . . . . . . . . . . . . . . 1 . Critical Strikes 3 | . . . . . . 1 . . . . . . 1 1 . Smash 1 | . . . . . . . . . . . . . . 1 . Sever 2 | . . . . . . 1 . . . . . . 1 . . Melee Attacks 188 | . . . . . 18 19 15 14 . 40 10 . 21 48 3 Impact 16 | . . . . . . . . . . . . . . 16 . Slashing 164 | . . . . . 18 19 15 14 . 40 10 . 21 25 2 Piercing . | . . . . . . . . . . . . . . . . Sneak Attacks 17 | . . . . . 3 2 . . . 5 . . . 7 . Combat Hostiles 1 | . . . . . . . . . . . . . . 1 . Follow-up Attacks 14 | . . . . . 1 1 . 3 . 4 1 . 1 3 . Damage Inflicted 4560 | . 347 298 . 477 431 406 50 535 . 950 216 . 155 683 12 Guns 434 | . 347 63 . 24 . . . . . . . . . . . Cannons . | . . . . . . . . . . . . . . . . Explosions 661 | . . 208 . 453 . . . . . . . . . . . Melee 3426 | . . . . . 431 406 50 535 . 950 216 . 155 683 . Ramming 15 | . . 3 . . . . . . . . . . . . 12 Kinetic 367 | . 347 20 . . . . . . . . . . . . . Thermal 91 | . . 67 . 24 . . . . . . . . . . . Explosive 661 | . . 208 . 453 . . . . . . . . . . . Electromagnetic . | . . . . . . . . . . . . . . . . Impact 247 | . . . . . . . . . . . . . . 247 . Slashing 3179 | . . . . . 431 406 50 535 . 950 216 . 155 436 . Piercing . | . . . . . . . . . . . . . . . . Highest Corruption 18 | . . . . . . . . 2 2 4 1 . . 18 18 Average Corruption 5 | . . . . . . . . 2 2 3 1 . . 4 16 Corruption Purged 7 | . . . . . . . . . . 3 2 . . . 2 Effects 28 | . . . . . . . . 1 1 9 . . . 12 5 Message Errors 4 | . . . . . . . . 1 . 1 . . . 1 1 Matter Fused 7 | . . . . . . . . . . 2 . . . 3 2 Heat Flow Errors 5 | . . . . . . . . . 1 1 . . . 2 1 Energy Discharges 4 | . . . . . . . . . . 2 . . . 2 . Parts Rejected 1 | . . . . . . . . . . . . . . 1 . Data Loss (minor) 5 | . . . . . . . . . . 3 . . . 2 . Misdirections 2 | . . . . . . . . . . . . . . 1 1 Overload Shots . | . . . . . . . . . . . . . . . . Overflow Damage 567 | . . . . . 170 25 . 6 . 230 . . . 136 . Projectiles . | . . . . . . . . . . . . . . . . Explosions . | . . . . . . . . . . . . . . . . Melee 567 | . . . . . 170 25 . 6 . 230 . . . 136 . Knockbacks 1 | . . . . . . . . . . . . . . 1 . Impact 1 | . . . . . . . . . . . . . . 1 . Kinetic . | . . . . . . . . . . . . . . . . Secondary . | . . . . . . . . . . . . . . . . Self-Inflicted Damage 78 | . . . . 74 . . . . . . . . . . 4 Shots 4 | . . . . 4 . . . . . . . . . . . Rammed 5 | . . . . . . . . . . . . . . . 5 Targets Rammed 7 | . . 2 . . . . . . . . . . . . 5 Kicked 2 | . . 2 . . . . . . . . . . . . . Crushed . | . . . . . . . . . . . . . . . . Highest Temperature 197 | . 88 154 . 84 . . . 12 112 163 . . . 197 186 Average Temperature 44 | . 26 51 . 35 . . . 6 60 74 . . . 63 105 Received Heat Transfer 951 | . 159 72 . . 9 9 6 261 18 36 45 . 27 273 36 Siege Activations . | . . . . . . . . . . . . . . . . Robots Corrupted . | . . . . . . . . . . . . . . . . Combat Hostiles . | . . . . . . . . . . . . . . . . Parts Fried 1 | . . . . . . . . . . . . . . 1 . Impact Corruptions 4 | . . . . . . . . . . . . . . 4 . Robots Melted . | . . . . . . . . . . . . . . . . Combat Hostiles . | . . . . . . . . . . . . . . . . Parts Melted . | . . . . . . . . . . . . . . . . Heat Transferred 200 | . . 150 . 50 . . . . . . . . . . . Parts Sabotaged . | . . . . . . . . . . . . . . . . Parts Stolen . | . . . . . . . . . . . . . . . . Parts Stripped . | . . . . . . . . . . . . . . . . Power Chain Reactions . | . . . . . . . . . . . . . . . . Missiles Intercepted . | . . . . . . . . . . . . . . . . Alert | -11 -10 -10 -10 -9 -8 -7 -6 -6 -6 -5 -5 -5 -4 -3 -3 ------- Run | Scr Mat Min Exi Min Mat Fac Fac Ext Cet Fac Upp Upp Fac Res Qua Peak Influence 1650 | . 242 86 . 250 127 120 120 253 44 86 . . 112 221 1650 Initial 53 | . . 16 . . 19 29 . 18 29 24 . . 50 53 48 Average 99 | . 94 41 . 115 55 45 28 79 40 49 . . 75 129 1611 Maximum Alert Level 5 | . 1 . . 1 . . . 1 . . . . . 1 5 Low Security (%) 91 | 100 73 100 . 90 100 100 100 85 100 100 . . 100 85 . Level 1 5 | . 26 . . 9 . . . 14 . . . . . 14 . Level 2 . | . . . . . . . . . . . . . . . . Level 3 . | . . . . . . . . . . . . . . . . Level 4 . | . . . . . . . . . . . . . . . . Level 5 . | . . . . . . . . . . . . . . . . High Security . | . . . . . . . . . . . . . . . . Max Security 2 | . . . . . . . . . . . . . . . 99 Squads Dispatched 20 | . 2 . . . 2 1 2 . . 2 . . 2 3 6 Investigation 3 | . . . . . . . . . . 1 . . 1 1 . Extermination 2 | . . . . . . . . . . 1 . . 1 . . Reinforcement 8 | . 2 . . . 2 1 2 . . . . . . 1 . Assault 7 | . . . . . . . . . . . . . . 1 6 Garrison . | . . . . . . . . . . . . . . . . Intercept . | . . . . . . . . . . . . . . . . Construction Impeded . | . . . . . . . . . . . . . . . . Haulers Reinforced . | . . . . . . . . . . . . . . . . Active Scanning Responses . | . . . . . . . . . . . . . . . . Cargo Convoy Interrupts . | . . . . . . . . . . . . . . . . Stealth | -11 -10 -10 -10 -9 -8 -7 -6 -6 -6 -5 -5 -5 -4 -3 -3 --------- Run | Scr Mat Min Exi Min Mat Fac Fac Ext Cet Fac Upp Upp Fac Res Qua Distress Signals 8 | . 2 . . . 1 1 . . . . . . . 2 2 Communications Jammed 49 | . . . . . . . . . . . . . . 49 . Distress Signals 48 | . . . . . . . . . . . . . . 48 . Times Spotted 140 | . 20 5 . 11 6 6 5 16 5 5 6 2 2 22 29 Peak Tracking Total 25 | . 6 3 . 4 4 3 1 5 5 2 3 2 2 9 25 Tactical Retreats 22 | . 1 . . . 2 2 2 4 . . 3 . . 8 . Traps | -11 -10 -10 -10 -9 -8 -7 -6 -6 -6 -5 -5 -5 -4 -3 -3 ------- Run | Scr Mat Min Exi Min Mat Fac Fac Ext Cet Fac Upp Upp Fac Res Qua Traps Triggered 5 | . . . . . . . . . . . . . 3 1 1 Indirectly . | . . . . . . . . . . . . . . . . Trap Hack Attempts . | . . . . . . . . . . . . . . . . Triggered . | . . . . . . . . . . . . . . . . Disarmed 5 | . . . . . . . 5 . . . . . . . . Reprogrammed . | . . . . . . . . . . . . . . . . Reused . | . . . . . . . . . . . . . . . . Traps Extracted . | . . . . . . . . . . . . . . . . Installed . | . . . . . . . . . . . . . . . . Triggered . | . . . . . . . . . . . . . . . . Machines | -11 -10 -10 -10 -9 -8 -7 -6 -6 -6 -5 -5 -5 -4 -3 -3 ---------- Run | Scr Mat Min Exi Min Mat Fac Fac Ext Cet Fac Upp Upp Fac Res Qua Machines Disabled 3 | . . . . . . . . . . . 1 . . . 2 Max in Single Turn 1 | . . . . . . . . . . . 1 . . . 1 Garrison Access 5 | . . . . . . . 2 . . 1 . . . 2 . Machines Sabotaged . | . . . . . . . . . . . . . . . . Garrisons Compromised . | . . . . . . . . . . . . . . . . Overloaded Fab Kills . | . . . . . . . . . . . . . . . . Hacking | -11 -10 -10 -10 -9 -8 -7 -6 -6 -6 -5 -5 -5 -4 -3 -3 --------- Run | Scr Mat Min Exi Min Mat Fac Fac Ext Cet Fac Upp Upp Fac Res Qua Machines Accessed 37 | . 2 . 2 . 5 6 7 1 . 5 . . 5 4 . Terminals 18 | . 1 . . . 3 3 4 1 . 1 . . 3 2 . Fabricators 2 | . . . . . . . . . . 1 . . 1 . . Repair Stations 3 | . 1 . . . . 1 . . . 1 . . . . . Recycling Units 1 | . . . . . 1 . . . . . . . . . . Scanalyzers 7 | . . . . . 1 2 1 . . 1 . . 1 1 . Garrison Access 4 | . . . . . . . 2 . . 1 . . . 1 . Total Hacks 99 | . 3 . 10 . 15 14 18 1 . 15 . . 15 8 . Successful 75 | . 3 . 10 . 12 8 14 . . 11 . . 12 5 . Failed 24 | . . . . . 3 6 4 1 . 4 . . 3 3 . Catastrophic 2 | . . . . . . . . 1 . . . . 1 . . Database Lockouts . | . . . . . . . . . . . . . . . . Manual 19 | . 1 . 1 . 5 4 2 . . . . . 5 1 . Terminals 41 | . 1 . . . 9 8 8 1 . 2 . . 9 3 . Fabricators 3 | . . . . . . . . . . 1 . . 2 . . Repair Stations 5 | . 2 . . . . 2 . . . 1 . . . . . Recycling Units 3 | . . . . . 3 . . . . . . . . . . Scanalyzers 30 | . . . . . 3 4 6 . . 9 . . 4 4 . Garrison Access 7 | . . . . . . . 4 . . 2 . . . 1 . Terminal Hacks 35 | . . . 10 . 6 4 6 . . 1 . . 7 1 . Record 11 | . . . 9 . 1 1 . . . . . . . . . Robot Analysis 3 | . . . . . 1 1 . . . . . . 1 . . Open Door 1 | . . . . . . . 1 . . . . . . . . Open DSF 5 | . . . . . . 1 2 . . 1 . . 1 . . Alert Level 3 | . . . . . 2 . . . . . . . 1 . . Locate Traps 2 | . . . . . . . 1 . . . . . 1 . . Disarm Traps 1 | . . . . . . . 1 . . . . . . . . Maintenance Status 1 | . . . . . . . . . . . . . 1 . . Patrol Status 1 | . . . . . . . 1 . . . . . . . . Investigation Status 2 | . . . . . . . . . . . . . 1 1 . Garrison Status 1 | . . . . . . . . . . . . . 1 . . Hauler Manifests 1 | . . . . . 1 . . . . . . . . . . Zone Layout 2 | . . . . . 1 1 . . . . . . . . . EX-Prototype ID Bank 1 | . . . 1 . . . . . . . . . . . . Fabricator Hacks 2 | . . . . . . . . . . . . . 2 . . Load Schematic 1 | . . . . . . . . . . . . . 1 . . Build 1 | . . . . . . . . . . . . . 1 . . Repair Station Hacks 4 | . 2 . . . . 2 . . . . . . . . . Scan Component 2 | . 1 . . . . 1 . . . . . . . . . Repair 2 | . 1 . . . . 1 . . . . . . . . . Recycling Unit Hacks 2 | . . . . . 2 . . . . . . . . . . Report Inventory 1 | . . . . . 1 . . . . . . . . . . Retrieve Components 1 | . . . . . 1 . . . . . . . . . . Scanalyzer 26 | . . . . . 3 2 6 . . 9 . . 3 3 . Insert Component 13 | . . . . . 1 1 3 . . 5 . . 1 2 . Analyze 13 | . . . . . 2 1 3 . . 4 . . 2 1 . Garrison Access Hacks 4 | . . . . . . . 2 . . 1 . . . 1 . Seal Access 4 | . . . . . . . 2 . . 1 . . . 1 . Unauthorized Hacks 2 | . 1 . . . 1 . . . . . . . . . . Terminals 2 | . 1 . . . 1 . . . . . . . . . . Track 1 | . 1 . . . . . . . . . . . . . . Operators 1 | . . . . . 1 . . . . . . . . . . Fabricators . | . . . . . . . . . . . . . . . . Repair Stations . | . . . . . . . . . . . . . . . . Recycling Units . | . . . . . . . . . . . . . . . . Scanalyzers . | . . . . . . . . . . . . . . . . Garrison Access . | . . . . . . . . . . . . . . . . Data Cores Recovered 1 | . . . . . 1 . . . . . . . . . . Used . | . . . . . . . . . . . . . . . . Hacking Detections 22 | . 1 . . . 4 4 3 1 . 2 . . 4 3 . Full Trace Events 3 | . . . . . . . . . . 1 . . 1 1 . Feedback Events 1 | . . . . . . . . . . . . . . 1 . Hackware Fried 1 | . . . . . . . . . . . . . . 1 . Feedback Blocked . | . . . . . . . . . . . . . . . . Robot Schematics Acquired . | . . . . . . . . . . . . . . . . Robots Built . | . . . . . . . . . . . . . . . . Authchips . | . . . . . . . . . . . . . . . . Time . | . . . . . . . . . . . . . . . . Total Robot Build Rating . | . . . . . . . . . . . . . . . . Part Schematics Acquired 11 | . . . . . 1 1 3 . . 4 . . 1 1 . Parts Built 1 | . . . . . . . . . . . . . 1 . . Authchips . | . . . . . . . . . . . . . . . . Time 134 | . . . . . . . . . . . . . 134 . . Total Part Build Rating 4 | . . . . . . . . . . . . . 4 . . Parts Repaired 2 | . 1 . . . . 1 . . . . . . . . . Time 51 | . 32 . . . . 19 . . . . . . . . . Parts Recycled . | . . . . . . . . . . . . . . . . Recycled Matter . | . . . . . . . . . . . . . . . . Retrieved Matter . | . . . . . . . . . . . . . . . . Retrieved Components 1 | . . . . . 1 . . . . . . . . . . Parts Scanalyzed 12 | . . . . . 1 1 3 . . 4 . . 1 2 . Part Schematics Acquired 11 | . . . . . 1 1 3 . . 4 . . 1 1 . Parts Damaged 2 | . . . . . . 1 . . . 1 . . . . . Bothacking | -11 -10 -10 -10 -9 -8 -7 -6 -6 -6 -5 -5 -5 -4 -3 -3 ------------ Run | Scr Mat Min Exi Min Mat Fac Fac Ext Cet Fac Upp Upp Fac Res Qua Used RIF Installer . | . . . . . . . . . . . . . . . . Robots Hacked 2 | . . . . . . . . . . . . . . 2 . Non-combat 2 | . . . . . . . . . . . . . . 2 . Combat . | . . . . . . . . . . . . . . . . Robot Hacks Applied 3 | . . . . . . . . . . . . . . 3 . parse_system 1 | . . . . . . . . . . . . . . 1 . no_distress 2 | . . . . . . . . . . . . . . 2 . Relay Couplers Released . | . . . . . . . . . . . . . . . . Robots Rewired . | . . . . . . . . . . . . . . . . Allies Hacked . | . . . . . . . . . . . . . . . . Hacks Repelled . | . . . . . . . . . . . . . . . . Allies | -11 -10 -10 -10 -9 -8 -7 -6 -6 -6 -5 -5 -5 -4 -3 -3 -------- Run | Scr Mat Min Exi Min Mat Fac Fac Ext Cet Fac Upp Upp Fac Res Qua Total Allies 4 | . . 1 . . . . . . . . . . . 3 . Largest Group 3 | . . 1 . . . . . . . . . . . 3 . Highest-Rated Group 138 | . . 31 . . . . . . . . . . . 138 . Highest-Rated Ally 46 | . . 31 . . . . . . . . . . . 46 . Total Orders . | . . . . . . . . . . . . . . . . Ally Attacks 16 | . . 5 . . . . . . . . . . . 11 . Total Damage 301 | . . 40 . . . . . . . . . . . 261 . Kills 3 | . . . . . . . . . . . . . . 3 . Allies Corrupted . | . . . . . . . . . . . . . . . . Allies Melted . | . . . . . . . . . . . . . . . . Intel | -11 -10 -10 -10 -9 -8 -7 -6 -6 -6 -5 -5 -5 -4 -3 -3 ------- Run | Scr Mat Min Exi Min Mat Fac Fac Ext Cet Fac Upp Upp Fac Res Qua Robot Analysis Total 3 | . . . . . 1 1 . . . . . . 1 . . Derelict Logs Recovered 2 | . . 1 . . . . . . . . 1 . . . . Drone Launches 2 | . . . . . . . . . . . . . . 2 . Drone Recoveries 2 | . . . . . . . . . . . . . . 2 . Exploration | -11 -10 -10 -10 -9 -8 -7 -6 -6 -6 -5 -5 -5 -4 -3 -3 ------------- Run | Scr Mat Min Exi Min Mat Fac Fac Ext Cet Fac Upp Upp Fac Res Qua Turns Passed 7763 | 65 691 1001 563 643 461 818 672 407 27 760 386 27 390 714 138 Spaces Moved 9145 | 48 394 503 295 322 761 1244 995 715 54 1231 723 51 407 1115 287 Core 23 | 7 . . . . . . . . . . . . . 5 11 Treads . | . . . . . . . . . . . . . . . . Legs 1555 | 41 394 503 295 322 . . . . . . . . . . . Wheels . | . . . . . . . . . . . . . . . . Hover 637 | . . . . . . . . . . . . . . 637 . Flight 6930 | . . . . . 761 1244 995 715 54 1231 723 51 407 473 276 Fastest Speed 34 | 50 120 190 190 190 50 50 50 50 50 50 50 50 39 34 40 Average Speed 70 | 109 140 190 190 190 50 50 50 50 50 50 50 50 46 46 40 Slowest Speed 550 | 120 190 190 190 190 50 50 50 50 50 150 50 50 50 550 50 Overloaded Moves . | . . . . . . . . . . . . . . . . Propulsion Burnouts . | . . . . . . . . . . . . . . . . Robots Hopped 1 | . . . . . . . . . . . . . . . 1 Cave-ins Triggered 1 | . . . . . . . . . . . . . . 1 . Teleports 2 | . . . . . . . . . . . . . . . 2 Exploration Rate (%) 40 | 3 73 88 62 54 39 34 20 71 23 21 81 14 12 25 26 Regions Visited 15 Branch Regions 8 Pre-discovered Areas . | . . . . . . . . . . . . . . . . Known Exits Taken 1 | . . . . . 1 . . . . . . . . . . Unknown Exits Taken 14 | 1 1 1 1 1 . 1 1 1 1 1 1 1 1 1 . Scrap Searched 4 | . . 1 . 1 . . . . . . 1 1 . . . Spaces Dug 63 | . . 1 . . 8 8 10 . . 11 1 . 10 14 . Terrain Destroyed 162 | . . 30 . 70 8 8 10 . . 11 1 . 10 14 . Melee 62 | . . . . . 8 8 10 . . 11 1 . 10 14 . Projectile 1 | . . 1 . . . . . . . . . . . . . AOE 99 | . . 29 . 70 . . . . . . . . . . . Terrain Rammed . | . . . . . . . . . . . . . . . . Walls Destroyed . | . . . . . . . . . . . . . . . . Machines Disabled . | . . . . . . . . . . . . . . . . Actions | -11 -10 -10 -10 -9 -8 -7 -6 -6 -6 -5 -5 -5 -4 -3 -3 --------- Run | Scr Mat Min Exi Min Mat Fac Fac Ext Cet Fac Upp Upp Fac Res Qua Total 10164 | 57 484 530 300 337 819 1419 1147 743 53 1343 733 51 583 1260 305 Wait 535 | . 39 . . 6 24 119 124 12 . 26 . . 135 50 . Move 9128 | 47 393 502 294 321 760 1243 994 714 53 1230 722 50 406 1114 285 Hop 1 | . . . . . . . . . . . . . . . 1 Pick Up 69 | 4 7 4 2 . 2 17 6 2 . 15 . . 2 6 2 Fast Attach 40 | 6 2 . . . 4 1 1 . . 5 1 . 4 13 3 Attach 44 | . . 4 . 1 6 3 2 4 . 5 . 1 . 14 4 Detach 29 | . . 5 . . 7 . 1 . . 3 . . 1 10 2 Swap 16 | . 7 1 . 1 . 3 . . . 4 . . . . . Drop 72 | . 9 1 4 . 3 17 5 . . 21 1 . 2 9 . Fire 47 | . 27 11 . 8 . . . . . . . . . 1 . Melee 158 | . . . . . 13 16 14 11 . 34 9 . 15 43 3 Ram 5 | . . . . . . . . . . . . . . . 5 Kick 2 | . . 2 . . . . . . . . . . . . . Crush . | . . . . . . . . . . . . . . . . Escape Stasis 18 | . . . . . . . . . . . . . 18 . . Rewire . | . . . . . . . . . . . . . . . . Trap . | . . . . . . . . . . . . . . . . Miscellaneous . | . . . . . . . . . . . . . . . . Route ------- -11/Scrapyard -10/Materials (discovered 3 exits: [*Mat x2] / [*Min]) -10/Mines (discovered 3 exits: [*Mat x2] / *Exi) -10/Exiles -9/Mines -8/Materials (discovered 2 exits: *Fac x2) -7/Factory (discovered 3 exits: *Fac x2 / [*Low]) -6/Factory (discovered 2 exits: *Fac / *Ext) -6/Extension (discovered 3 exits: *Fac x2 / [*Cet]) -6/Cetus -5/Factory -5/Upper Caves -5/Upper Caves -4/Factory -3/Research -3/Quarantine History --------- Turn | Location | Event 9 | -11/Scrapyard | Discovered new exit (range 16) 66 | -11/Scrapyard | Entered Materials 294 | -10/Materials | Discovered new exit (range 10) 328 | -10/Materials | Build established: Mutant 371 | -10/Materials | Repaired Imp. Ion Engine 459 | -10/Materials | Discovered new exit (range 16) 584 | -10/Materials | Discovered new exit (range 15) 757 | -10/Materials | Entered Mines 829 | -10/Mines | Met a Derelict bent on vengeance 951 | -10/Mines | Received a Mining Laser from a helpful Derelict 1009 | -10/Mines | Assembled infested the area 1215 | -10/Mines | Learned location of 1 exit from Materials 1599 | -10/Mines | Discovered new exit (range 8) 1616 | -10/Mines | Discovered new exit (range 12) 1751 | -10/Mines | Discovered new exit (range 5) 1758 | -10/Mines | Entered Exiles 1804 | -10/Exiles | Met 8R-AWN 1836 | -10/Exiles | Met EX-HEX 1897 | -10/Exiles | Met EX-BIN 2013 | -10/Exiles | Aligned with FarCom system 2015 | -10/Exiles | Given EX-Vault access code 2064 | -10/Exiles | Opened EX-Vault 2091 | -10/Exiles | Found Flying Fortress v7 2135 | -10/Exiles | Warned to stay clear of 0b10 Research branches 2183 | -10/Exiles | Met EX-DEC 2300 | -10/Exiles | Discovered new exit (range 12) 2321 | -10/Exiles | Left Exiles lab with Flying Fortress v7 2321 | -10/Exiles | Entered Mines 2728 | -9/Mines | Found a hidden stash of uninstalled traps 2941 | -9/Mines | Discovered new exit (range 9) 2964 | -9/Mines | Entered Materials 2964 | -8/Materials | Evolved 4 slots: Power x1, Propulsion x2, Utility x1 2965 | -8/Materials | Identified exit to Factory 3302 | -8/Materials | Discovered exit to Factory (range 16) 3425 | -8/Materials | Entered Factory 3425 | -7/Factory | Evolved 2 slots: Utility x2 3732 | -7/Factory | Discovered new exit (range 13) 3806 | -7/Factory | Discovered new exit (range 19) 3936 | -7/Factory | Repaired Axe 3967 | -7/Factory | Discovered new exit (range 19) 4243 | -7/Factory | Entered another Factory area 4243 | -6/Factory | Evolved 2 slots: Utility x2 4406 | -6/Factory | Discovered new exit (range 12) 4537 | -6/Factory | Build established: Ninja 4843 | -6/Factory | Discovered new exit (range 16) 4915 | -6/Factory | Entered Extension 5083 | -6/Extension | Spotted B-75 Beast 5232 | -6/Extension | Spotted B-75 Beast 5235 | -6/Extension | Discovered new exit (range 16) 5271 | -6/Extension | Lost 4 parts (2p2u) 5278 | -6/Extension | Discovered new exit (range 22) 5279 | -6/Extension | Discovered new exit (range 20) 5322 | -6/Extension | Entered Cetus 5328 | -6/Cetus | Spotted Cetus Guard 5328 | -6/Cetus | Spotted Cetus Guard 5328 | -6/Cetus | Spotted Cetus Guard 5328 | -6/Cetus | Spotted Cetus Guard 5339 | -6/Cetus | Discovered new exit (range 21) 5349 | -6/Cetus | Entered Factory 5349 | -5/Factory | Evolved 2 slots: Utility x2 5634 | -5/Factory | Discovered new exit (range 5) 5657 | -5/Factory | Build established: Infiltrator-Ninja 6109 | -5/Factory | Entered Upper Caves 6121 | -5/Upper Caves | Learned Factory security intel 6195 | -5/Upper Caves | Attacked by a delusional Derelict stockpiling Unaware 6488 | -5/Upper Caves | Discovered new exit (range 14) 6495 | -5/Upper Caves | Entered another Upper Caves area 6508 | -5/Upper Caves | Discovered new exit (range 17) 6522 | -5/Upper Caves | Entered Factory 6522 | -4/Factory | Evolved 2 slots: Propulsion x2 6669 | -4/Factory | Identified exit to DSF 6820 | -4/Factory | Fabricated Cld. VTOL Module (x1) 6860 | -4/Factory | Build established: Hacker-Ninja 6882 | -4/Factory | Discovered new exit (range 21) 6912 | -4/Factory | Entered Research 6912 | -3/Research | Evolved 2 slots: Utility x2 7033 | -3/Research | Hacking Suite fried by hacking feedback 7272 | -3/Research | Spotted B-86 Titan 7323 | -3/Research | Build established: Mutant 7353 | -3/Research | Allied Derelicts emerged from ambush trap array 7465 | -3/Research | Crushed by falling debris 7540 | -3/Research | Found Antimissile System 7572 | -3/Research | Spotted B-86 Titan 7576 | -3/Research | Lost 4 parts (2n2u) 7580 | -3/Research | System corruption reached 10% 7606 | -3/Research | Spotted B-90 Cyclops 7610 | -3/Research | Discovered new exit (range 13) 7626 | -3/Research | Core integrity fell below 50% 7626 | -3/Research | Entered Quarantine 7627 | -3/Quarantine | Maximum security lockdown engaged 7655 | -3/Quarantine | Lost 12 parts (2p4n5u1w) 7667 | -3/Quarantine | Found Alien Artifact 7667 | -3/Quarantine | Identified Transdimensional Reconstructor 7667 | -3/Quarantine | Warped through subspace 7691 | -3/Quarantine | Found Transdimensional Reconstructor 7691 | -3/Quarantine | Warped through subspace 7712 | -3/Quarantine | Found Alien Energy Cannon 7748 | -3/Quarantine | Identified Core Cannon 7762 | -3/Quarantine | Core integrity fell below 20% 7764 | -3/Quarantine | Destroyed by G-67 Veteran with Electrolaser Last Messages --------------- L-61 Swordsman unfolds itself. G-67 Veteran unfolds itself. E-15 Imp unfolds itself. C-30 ARC bursts open, deploying its payload. G-73 Enforcer unfolds itself. B-74 Champion unfolds itself. G-67 Veteran unfolds itself. I-47 Archangel unfolds itself. Imp. Transmission Jammer destroyed. Identified Core Cannon. System corrupted: Heat flow error (+269). Field Propulsion Array destroyed. Slammed into G-67 Veteran. Slammed into L-61 Swordsman. Slammed into X-82 Rainmaker. Slammed into G-67 Veteran. I-47 Archangel knocked back. Adv. Hacking Suite destroyed. Com. Battery destroyed. I-47 Archangel knocked back. Map ----- +----------------------------------------------------+ | | | | | | | | | | | | | | | ?????????????????????????????????????????????????? | | ?????????????????????????????????????????????????? | | ?????????????????????????????????????????????????? | | ?????????????????????????????????????????????????? | | ????????????????????###########??????????????????? | | ????????????????????# #??????????????????? | | ????????????????????# """S""" #??????????????????? | | ????????????????????# """ """ #??????????????????? | | ????????????????????# #??????????????????? | | ????????????????????# """"""" #??????????????????? | | ????????????????????# """"""" #??????????????????? | | ????????????????????# """"""" #??????????????????? | | ????????????????????# #??????????????????? | | ????#+####+##############+#####??????????????????? | | ????# ! "%""%%% #???????????????????? | | ????# | " """ m #???????????????????? | | ???## """ g #???????????????????? | | ???#T """ ggbgi #???????????????????? | | ???## """ #############@####???????????????????? | | ????#] ####??# xg #????????????????????? | | ##### """ """#??# lg""gxg #????????????????????? | | # """ T"#??# " " #????????????????????? | | + """ """#??#gl """ b #????????????????????? | | # ####??# """""""i#????????????????????? | | # ! = #?????# """"""" #????????????????????? | | ## ### #?????# e g #????????????????????? | | ?# ???# #?????# pg g #????????????????????? | | ?#?????# #?????###########????????????????????? | | ???????# #????????????????????????????????????? | | ???????# #????????????????????????????????????? | | ???????# #????????????????????????????????????? | | ???????# #????????????????????????????????????? | | ???????# #????????????????????????????????????? | | ???????# #????????????????????????????????????? | | ######## #????????????????????????????????????? | | #????????????????????????????????????? | | #????????????????????????????????????? | | #????????????????????????????????????? | | #????????????????????????????????????? | | #############????????????????????????????????????? | | ?????????????????????????????????????????????????? | | ?????????????????????????????????????????????????? | | ?????????????????????????????????????????????????? | +----------------------------------------------------+ Best States ------------- Heat Dissipation 46 Energy Generation 34 Energy Capacity 895 Matter Stores 300 Matter Capacity 300 Sight Range 22 Terrain Scan Range 16 Terrain Scan Density 210 ECM Strength 2 Jamming Range 12 Armor Coverage 300 Point Defense Rating 240 Reclamation Efficiency 25 Melee Speed Boost 20 Phase Shifting 10 Evasion (%) 73 Melee Accuracy 5 Core Analysis 8 Offensive Hacking 24 Item Schematics ----------------- Hvy. Ion Engine | -8/Materials | Scanalyzed Nuclear Core | -7/Factory | Scanalyzed Katana | -6/Factory | Scanalyzed Cld. VTOL Module | -6/Factory | Scanalyzed Deuterium Engine | -6/Factory | Scanalyzed Field Propulsion Drive | -5/Factory | Scanalyzed Hacking Suite | -5/Factory | Scanalyzed Gravmag Array | -5/Factory | Scanalyzed Lgt. Angular Momentum Engine | -5/Factory | Scanalyzed Antigrav System | -4/Factory | Scanalyzed Plasma Sword | -3/Research | Scanalyzed Robot Schematics ------------------ None Fabricated ------------ Cld. VTOL Module | x1 | -4/Factory Alien Tech Used ----------------- Transdimensional Reconstructor Core Cannon Achievements -------------- None Challenges ------------ None Game ------ Seed VisualConcussiveInterpreter Manual? 0 Play Time 02:42:48 Cumulative 22.4 hours Start 2021.10.23 @ 20:11:19 End 2021.10.24 @ 17:53:47 Sessions 3 Manual Loads 0 Difficulty Rogue Special Mode None Game No. 36 Rogue 16 Adventurer 17 Explorer 3 Win Type - Total 0 Types 0/0/0/0/0/0/0/0/0 Lore% 11 Gallery% 22 Achievement% 37 Wizard Run 0 Options --------- ASCII 1 Keyboard 1 Movement Vi Keybinds 0 Fullscreen 2 Font 14/Terminus Map View 72x54 Tactical HUD 0 Map Filters NONE Filters NONE Steam 1 RUN: 9b686fab-669f-4282-aa39-d8157e659fa3